bitfinex/quotes_ETHUSD_20250903
["timestamp","ask_amount","ask_price","bid_price","bid_amount"]
[1756878091592,3.855,4331.9,4331.8,1.2288]
[1756878091797,3.855,4331.9,4331.8,0.004]
[1756878093215,0.001,4331.9,4331.8,0.739]
[1756878093416,3.855,4331.9,4331.8,0.739]
[1756878093794,0.001,4331.9,4331.8,0.739]
[1756878094208,3.855,4331.9,4331.8,0.739]
[1756878094519,3.855,4331.9,4331.8,3.53730916]
[1756878096113,0.001,4331.9,4331.8,3.53730916]
[1756878096718,0.001,4331.9,4331.8,1.2288]
[1756878097095,0.001,4331.9,4331.8,0.739]
[1756878098328,0.001,4331.9,4331.8,3.04750916]
[1756878098916,0.001,4331.9,4331.8,3.53730916]
[1756878099629,0.001,4331.9,4331.8,1.2288]
[1756878100125,0.001,4331.9,4331.8,0.739]
[1756878101028,0.001,4331.9,4331.8,1.2288]
[1756878101598,0.001,4331.9,4331.8,3.53730916]
[1756878102107,0.001,4331.9,4331.8,3.90296008]
[1756878102530,0.001,4331.9,4331.8,4.01816008]
[1756878124319,0.001,4331.9,4331.8,3.65250916]
[1756878124646,0.001,4331.9,4331.8,3.16270916]
[1756878127667,0.001,4331.9,4331.8,0.1192]
[1756878127845,0.2502,4331.9,4331.8,0.004]
[1756878128055,0.50615097,4331.9,4331.8,0.004]
[1756878130042,0.2502,4331.9,4331.8,0.004]
[1756878130967,0.001,4331.9,4331.8,0.004]
[1756878132367,0.001,4331.9,4331.8,0.024]
[1756878133247,0.001,4331.9,4331.8,2.33250916]
[1756878133448,0.001,4331.9,4331.8,0.7583]
[1756878136372,0.001,4331.9,4331.8,0.4684]
[1756878139582,0.001,4331.9,4331.8,3.56460916]
[1756878139873,0.001,4331.9,4331.8,4.11903763]
[1756878140458,0.001,4331.9,4331.8,4.23423763]
[1756878141862,1e-08,4331.9,4331.8,10.65732272]
[1756878142055,1e-08,4331.9,4331.8,10.63423763]
[1756878144370,1e-08,4331.9,4331.8,14.48623763]
[1756878144868,1e-08,4331.9,4331.8,0.024]
[1756878146043,0.24920001,4331.9,4331.8,0.024]
[1756878146544,0.36440001,4331.9,4331.8,0.024]
[1756878147778,4.21640001,4331.9,4331.8,0.024]
[1756878148973,4.21640001,4331.9,4331.8,0.004]
[1756878149144,5.04093135,4331.9,4331.8,0.004]
[1756878150178,4.79173135,4331.9,4331.8,0.004]
[1756878152690,8.14138722,4331.9,4331.8,0.004]
[1756878152989,8.78050527,4331.9,4331.8,0.004]
[1756878153169,8.46580415,4331.9,4331.8,0.004]
[1756878161299,15.37660415,4331.9,4331.8,0.004]
[1756878166582,0.792,4331.8,4331.6,1e-08]
[1756878166818,8.08329761,4331.7,4331.6,1e-08]
[1756878167029,3.10093558,4331.0,4330.4,0.004]
[1756878167226,8.69613558,4331.0,4330.4,0.004]
[1756878167525,9.26975251,4331.0,4330.4,0.004]
[1756878167729,9.3623375,4331.0,4330.4,0.004]
[1756878168028,10.18686884,4331.0,4330.4,0.004]
[1756878169623,9.93766884,4331.0,4330.4,0.004]
[1756878169926,9.93766884,4331.0,4330.4,0.4778]
[1756878170642,6.08566884,4331.0,4330.4,0.4778]
[1756878170924,9.93766884,4331.0,4330.4,0.4778]
[1756878171130,6.08566884,4331.0,4330.4,0.4778]
[1756878171424,9.93766884,4331.0,4330.4,0.4778]
[1756878172627,9.61325191,4331.0,4330.9,0.7708]
[1756878172931,9.61325191,4331.0,4330.9,1.257]
[1756878173148,5.76125191,4331.0,4330.9,1.257]
[1756878173308,9.61325191,4331.0,4330.9,1.257]
[1756878174324,5.76125191,4331.0,4330.9,1.257]
[1756878174526,7.99672057,4331.0,4330.9,1.257]
[1756878174937,1.83578499,4331.0,4330.9,1.257]
[1756878175106,7.99672057,4331.0,4330.9,1.257]
[1756878177746,4.14472057,4331.0,4330.9,1.257]
[1756878177949,7.99672057,4331.0,4330.9,1.257]
[1756878178453,5.68778499,4331.0,4330.9,1.257]
[1756878178608,7.99672057,4331.0,4330.9,1.257]
[1756878179517,4.14472057,4331.0,4330.9,1.257]
[1756878179717,7.99672057,4331.0,4330.9,1.257]
[1756878180214,1.83578499,4331.0,4330.9,1.257]
[1756878180414,5.68778499,4331.0,4330.9,1.257]
[1756878180823,5.5952,4331.0,4330.9,1.257]
[1756878181332,1.7432,4331.0,4330.9,1.257]
[1756878181534,5.48,4331.0,4330.9,1.257]
[1756878183051,1.628,4331.0,4330.9,4.04019198]
[1756878183255,3.852,4331.0,4330.9,4.04019198]
[1756878183453,0.001,4331.3,4331.2,2.30882896]
[1756878183824,0.001,4331.3,4331.2,3.67362896]
[1756878186566,0.792,4331.2,4330.9,0.004]
[1756878186770,3.10098889,4330.9,4330.8,0.024]
[1756878186928,10.43894297,4330.9,4330.8,0.024]
[1756878187123,11.04454103,4330.9,4330.8,0.024]
[1756878188165,10.68814297,4330.9,4330.8,0.024]
[1756878188344,11.50188835,4330.9,4330.8,0.024]
[1756878188548,11.13793427,4330.9,4330.8,1e-08]
[1756878190280,11.13593427,4330.9,4330.8,1e-08]
[1756878191048,9.70593427,4330.9,4330.8,1e-08]
[1756878191637,5.54273427,4330.9,4330.8,1e-08]
[1756878191838,9.45673427,4330.9,4330.8,1e-08]
[1756878192153,9.70593427,4330.9,4330.8,1e-08]
[1756878194273,9.45673427,4330.9,4330.8,1e-08]
[1756878194874,9.45673427,4330.9,4330.8,0.00400001]
[1756878195772,9.45273427,4330.9,4330.8,0.00400001]
[1756878196542,9.56793427,4330.9,4330.8,0.00400001]
[1756878205674,9.93188835,4330.9,4330.8,0.00400001]
[1756878205869,17.09188835,4330.9,4330.8,0.00400001]
[1756878209477,17.44828641,4330.9,4330.8,1e-08]
[1756878209651,16.72793427,4330.9,4330.8,1e-08]
[1756878209844,17.09188835,4330.9,4330.8,1e-08]
[1756878213373,17.09288835,4330.9,4330.8,1e-08]
[1756878213784,17.09288835,4330.9,4330.8,0.47030001]
[1756878213785,16.71593427,4330.9,4330.8,0.47030001]
[1756878214449,17.07988835,4330.9,4330.8,0.47030001]
[1756878214657,17.07988835,4330.9,4330.8,1.24800001]
[1756878214955,13.18288835,4330.9,4330.8,1.24800001]
[1756878215154,15.11018889,4330.9,4330.8,1.24800001]
[1756878215550,15.90218889,4330.9,4330.8,1.24800001]
[1756878216883,16.26614297,4330.9,4330.8,0.75710001]
[1756878217258,16.26614297,4330.9,4330.8,1.24800001]
[1756878221070,12.00518889,4330.9,4330.8,1.24800001]
[1756878221266,15.90118889,4330.9,4330.8,1.24800001]
[1756878221574,12.00518889,4330.9,4330.8,1.24800001]
[1756878221917,15.89918889,4330.9,4330.8,1.24800001]
[1756878222473,12.00518889,4330.9,4330.8,1.24800001]
[1756878222800,15.89918889,4330.9,4330.8,1.24800001]
[1756878224273,12.00518889,4330.9,4330.8,1.24800001]
[1756878224474,15.89818889,4330.9,4330.8,1.24800001]
[1756878225097,12.00518889,4330.9,4330.8,1.24800001]
[1756878225297,15.89718889,4330.9,4330.8,1.24800001]
[1756878228375,15.89718889,4330.9,4330.8,0.28680001]
[1756878228576,15.89718889,4330.9,4330.8,0.75710001]
[1756878228773,16.26114297,4330.9,4330.8,0.75710001]
[1756878229206,16.26114297,4330.9,4330.8,1.24800001]
[1756878231811,16.25714297,4330.9,4330.8,1.24800001]
[1756878236416,12.00518889,4330.9,4330.8,1.24800001]
[1756878236612,15.89018889,4330.9,4330.8,1.24800001]
[1756878237713,8.73018889,4330.9,4330.8,1.24800001]
[1756878241307,9.09414297,4330.9,4330.8,1e-08]
[1756878241508,16.25414297,4330.9,4330.8,1e-08]
[1756878242312,15.89018889,4330.9,4330.8,1e-08]
[1756878242494,12.81058283,4330.9,4330.8,1e-08]
[1756878242695,15.78098889,4330.9,4330.8,0.43610001]
[1756878242919,15.78098889,4330.9,4330.8,1e-08]
[1756878243696,15.78098889,4330.9,4330.8,0.43610001]
[1756878244205,11.88998889,4330.9,4330.8,1.19740001]
[1756878244396,15.78298889,4330.9,4330.8,1.19740001]
[1756878248530,15.78298889,4330.9,4330.8,1e-08]
[1756878248828,16.12769297,4330.9,4330.8,1e-08]
[1756878251406,16.66591616,4330.9,4330.8,1e-08]
[1756878251734,3.10120217,4330.5,4330.4,0.004]
[1756878251917,6.99220217,4330.5,4330.4,0.004]
[1756878252502,7.10740217,4330.5,4330.4,0.004]
[1756878252903,7.54750217,4330.5,4330.4,0.004]
[1756878255126,7.89220625,4330.5,4330.4,0.004]
[1756878255332,8.9123393,4330.5,4330.4,0.004]
[1756878256335,16.0723393,4330.5,4330.4,0.004]
[1756878261825,12.1813393,4330.5,4330.4,0.004]
[1756878262046,16.0683393,4330.5,4330.4,0.004]
[1756878266460,16.0683393,4330.5,4330.4,0.4401]
[1756878266668,15.72363522,4330.5,4330.4,0.4401]
[1756878266964,15.72363522,4330.5,4330.4,1.2014]
[1756878267863,15.72063522,4330.5,4330.4,0.7653]
[1756878268064,15.72063522,4330.5,4330.4,1.2014]
[1756878269065,11.83663522,4330.5,4330.4,1.2014]
[1756878269267,15.72063522,4330.5,4330.4,1.2014]
[1756878269565,15.71963522,4330.5,4330.4,1.2014]
[1756878270566,11.83663522,4330.5,4330.4,1.2014]
[1756878270772,15.71963522,4330.5,4330.4,1.2014]
[1756878271454,11.83663522,4330.5,4330.4,1.2014]
[1756878271656,13.90650217,4330.5,4330.4,1.2014]
[1756878271858,14.69850217,4330.5,4330.4,1.2014]
[1756878275049,10.81650217,4330.5,4330.4,1.2014]
[1756878275253,14.69750217,4330.5,4330.4,1.2014]
[1756878275655,14.8737268,4330.5,4330.4,1.2014]
[1756878279487,10.9927268,4330.5,4330.4,1.2014]
[1756878279859,14.8717268,4330.5,4330.4,1.2014]
[1756878281756,14.8697268,4330.5,4330.4,1.2014]
[1756878286480,14.8697268,4330.5,4330.4,0.7337]
[1756878286684,14.8697268,4330.5,4330.4,0.004]
[1756878286889,10.9927268,4330.5,4330.4,0.004]
[1756878287107,14.8677268,4330.5,4330.4,0.4354]
[1756878287590,10.9927268,4330.5,4330.4,1.2242]
[1756878287792,14.8677268,4330.5,4330.4,1.2242]
[1756878290894,14.8657268,4330.5,4330.4,1.2242]
[1756878293605,7.7153,4330.5,4330.4,1.2242]
[1756878293804,3.9862,4330.5,4330.4,1.34702]
[1756878294003,3.9862,4330.5,4330.4,1.2242]
[1756878294208,3.871,4330.5,4330.4,1.2242]
[1756878297697,6.18020217,4330.5,4330.4,1.2242]
[1756878298009,6.52490625,4330.5,4330.4,0.004]
[1756878298311,6.52490625,4330.5,4330.4,0.4354]
[1756878299643,6.97220217,4330.5,4330.4,0.004]
[1756878299814,7.9119535,4330.5,4330.4,0.4459]
[1756878300007,8.5268535,4330.5,4330.4,0.4459]
[1756878300700,4.4859,4330.5,4330.4,1.2168]
[1756878301317,6.79510217,4330.5,4330.4,1.2168]
[1756878301929,6.79510217,4330.5,4330.4,0.004]
[1756878301930,7.93180625,4330.5,4330.4,0.004]
[1756878302436,5.2779,4330.5,4330.4,0.7478]
[1756878302732,7.58710217,4330.5,4330.4,1.2168]
[1756878302904,5.2779,4330.5,4330.4,1.2168]
[1756878303529,7.58710217,4330.5,4330.4,1.2168]
[1756878304258,5.2779,4330.5,4330.4,1.2168]
[1756878304759,7.58710217,4330.5,4330.4,0.7478]
[1756878305063,8.58834312,4330.5,4330.4,0.004]
[1756878306356,9.1822472,4330.5,4330.4,0.004]
[1756878306559,8.9330472,4330.5,4330.4,0.004]
[1756878309676,16.0930472,4330.5,4330.4,0.004]
[1756878314357,12.2220472,4330.5,4330.4,0.004]
[1756878314557,16.0890472,4330.5,4330.4,0.004]
[1756878316750,16.0890472,4330.5,4330.0,0.004]
[1756878316751,3.10141548,4330.1,4330.0,0.004]
[1756878316991,9.34534275,4330.1,4330.0,0.004]
[1756878317224,9.59454275,4330.1,4330.0,0.004]
[1756878317493,16.84714509,4330.1,4330.0,0.004]
[1756878317660,0.792,4329.5,4329.4,0.004]
[1756878317986,14.8836628,4329.5,4329.4,0.004]
[1756878318501,14.59175246,4329.5,4329.4,0.004]
[1756878319175,14.70737081,4329.5,4329.4,0.004]
[1756878319375,14.70737081,4329.5,4329.4,1e-08]
[1756878319576,15.23149524,4329.5,4329.4,1e-08]
[1756878320296,15.57619932,4329.5,4329.4,1e-08]
[1756878322217,11.70319932,4329.5,4329.4,1e-08]
[1756878322416,15.57719932,4329.5,4329.4,1e-08]
[1756878324818,3.10178888,4329.4,4329.3,1e-08]
[1756878325136,4.44773391,4329.4,4329.3,1e-08]
[1756878326418,4.10302983,4329.4,4329.3,1e-08]
[1756878326730,7.97602983,4329.4,4329.3,1e-08]
[1756878327325,4.10302983,4329.4,4329.3,1e-08]
[1756878327699,7.97502983,4329.4,4329.3,1e-08]
[1756878328025,4.10302983,4329.4,4329.3,1e-08]
[1756878328227,4.10302983,4329.4,4329.3,0.44190001]
[1756878328408,7.97502983,4329.4,4329.3,0.44190001]
[1756878330332,15.13502983,4329.4,4329.3,0.44190001]
[1756878330838,15.13502983,4329.4,4329.3,1e-08]
[1756878332439,15.13502983,4329.4,4329.3,0.45000001]
[1756878333132,15.13302983,4329.4,4329.3,0.45000001]
[1756878333536,15.13302983,4329.4,4329.3,1e-08]
[1756878334629,15.47773391,4329.4,4329.3,1e-08]
[1756878335312,11.60773391,4329.4,4329.3,0.76420001]
[1756878335512,11.26302983,4329.4,4329.3,1.25130001]
[1756878335910,15.13202983,4329.4,4329.3,1.25130001]
[1756878336316,11.26302983,4329.4,4329.3,1.25130001]
[1756878336531,15.13302983,4329.4,4329.3,1.25130001]
[1756878336846,15.13202983,4329.4,4329.3,1.25130001]
[1756878337535,11.26302983,4329.4,4329.3,1.25130001]
[1756878337730,15.13202983,4329.4,4329.3,1.25130001]
[1756878338234,11.26302983,4329.4,4329.3,1.25130001]
[1756878338543,10.26178888,4329.4,4329.3,1.25130001]
[1756878338720,6.97078888,4329.4,4329.3,1.25130001]
[1756878339314,7.31549296,4329.4,4329.3,0.76420001]
[1756878339771,7.31549296,4329.4,4329.3,1.25130001]
[1756878343048,6.97078888,4329.4,4329.3,1.25130001]
[1756878344053,8.31592278,4329.4,4329.3,1e-08]
[1756878349971,8.31692278,4329.4,4329.3,1e-08]
[1756878350952,15.47692278,4329.4,4329.3,1e-08]
[1756878351849,15.47392278,4329.4,4329.3,0.45000001]
[1756878352550,15.47492278,4329.4,4329.3,0.80130001]
[1756878352749,15.47492278,4329.4,4329.3,1.25130001]
[1756878354376,11.60792278,4329.4,4329.3,1.25130001]
[1756878354552,15.1302187,4329.4,4329.3,1.25130001]
[1756878356149,16.7592187,4329.4,4329.3,1.25130001]
[1756878356678,16.8744187,4329.4,4329.3,1.25130001]
[1756878357049,13.0074187,4329.4,4329.3,1.25130001]
[1756878357346,16.8734187,4329.4,4329.3,1.25130001]
[1756878358479,12.00698888,4329.4,4329.3,1.25130001]
[1756878358687,15.87298888,4329.4,4329.3,1.25130001]
[1756878359080,16.21769296,4329.4,4329.3,1.25130001]
[1756878364999,15.87298888,4329.4,4329.3,1.25130001]
[1756878367390,8.9052,4329.4,4329.3,1.25130001]
[1756878367597,12.7712,4329.4,4329.3,1.25130001]
[1756878367973,15.87298888,4329.4,4329.3,1.25130001]
[1756878369168,12.00698888,4329.4,4329.3,1.25130001]
[1756878369396,15.87298888,4329.4,4329.3,1.25130001]
[1756878374918,8.9052,4329.4,4329.3,1.25130001]
[1756878375099,12.7712,4329.4,4329.3,1.25130001]
[1756878376297,8.9052,4329.4,4329.3,1.25130001]
[1756878376505,12.7712,4329.4,4329.3,1.25130001]
[1756878377437,0.1162,4329.4,4329.3,3.91727079]
[1756878377595,0.001,4329.4,4329.3,4.03247079]
[1756878379704,3.867,4329.4,4329.3,4.03247079]
[1756878379917,0.001,4329.4,4329.3,4.03247079]
[1756878380325,0.001,4329.4,4329.3,10.43247079]
[1756878383296,0.001,4329.9,4329.3,11.98762856]
[1756878383498,0.001,4329.9,4329.8,2.3095755]
[1756878383700,0.001,4329.9,4329.8,2.4247755]
[1756878383901,0.001,4329.9,4329.8,3.6168755]
[1756878384196,0.001,4329.9,4329.8,3.63997125]
[1756878384626,0.001,4329.9,4329.8,3.6168755]
[1756878384792,0.001,4329.9,4329.8,8.07452847]
[1756878387618,0.001,4329.9,4329.8,14.47452847]
[1756878392410,0.001,4329.9,4329.8,3.01742847]
[1756878392600,0.001,4329.9,4329.8,3.79232847]
[1756878393107,0.001,4329.9,4329.8,4.26952847]
[1756878394238,0.001,4329.9,4329.8,10.66952847]
[1756878396619,1e-08,4329.9,4329.8,10.66952847]
[1756878396942,0.001,4330.3,4329.8,10.66952847]
[1756878396943,0.001,4330.3,4330.2,2.30936215]
[1756878397144,0.001,4330.3,4330.2,6.63524525]
[1756878397347,0.001,4330.3,4330.2,7.06064525]
[1756878397531,0.001,4330.3,4330.2,14.40254525]
[1756878407238,1e-08,4330.4,4330.3,2.30930882]
[1756878407570,1e-08,4330.4,4330.3,5.10828731]
[1756878407867,1e-08,4330.8,4330.7,2.30909552]
[1756878408060,1e-08,4330.8,4330.7,6.31038647]
[1756878408373,1e-08,4330.8,4330.7,7.53939552]
[1756878408561,1e-08,4330.8,4330.7,13.93939552]
[1756878408762,1e-08,4330.8,4330.7,15.56425529]
[1756878409779,1e-08,4330.9,4330.8,2.3090422]
[1756878409976,1e-08,4330.9,4330.8,3.27403262]
[1756878410179,1e-08,4330.9,4330.8,3.58423262]
[1756878412179,1e-08,4330.9,4330.8,9.98423262]
[1756878412483,1e-08,4330.9,4330.8,11.76003319]
[1756878412785,1e-08,4331.0,4330.9,2.30898889]
[1756878412960,1e-08,4331.0,4330.9,7.90488889]
[1756878413164,1e-08,4331.0,4330.9,8.21508889]
[1756878413369,0.061,4331.8,4331.2,2.30882896]
[1756878413556,0.061,4331.8,4331.2,7.63232186]
[1756878413881,0.061,4331.8,4331.3,2.30877565]
[1756878414052,0.061,4331.8,4331.3,3.25067565]
[1756878414383,0.061,4331.8,4331.3,3.56087565]
[1756878414575,0.061,4331.8,4331.3,9.96087565]
[1756878414898,0.061,4331.8,4331.3,11.7317154]
[1756878417866,0.061,4331.8,4331.3,10.9568154]
[1756878418181,0.061,4331.8,4331.3,11.2545154]
[1756878419795,0.061,4331.8,4331.3,11.7127154]
[1756878420570,0.061,4331.8,4331.3,10.4796154]
[1756878420970,0.3102,4331.8,4331.3,14.3406154]
[1756878422202,0.061,4331.8,4331.3,14.3406154]
[1756878423065,0.2502,4331.4,4331.3,2.30877565]
[1756878423897,0.2502,4331.4,4331.2,2.42402857]
[1756878424095,0.2492,4331.3,4331.2,2.42402857]
[1756878425381,0.2492,4331.3,4331.2,2.42402896]
[1756878425803,0.001,4331.4,4331.3,2.30877565]
[1756878433393,0.001,4331.4,4331.2,0.1152]
[1756878433805,0.001,4331.4,4331.2,2.42401848]
[1756878434826,0.001,4331.4,4331.3,2.30877565]
[1756878437198,0.001,4331.4,4331.3,2.59487565]
[1756878437402,0.001,4331.4,4331.3,4.45099078]
[1756878439398,0.001,4331.4,4331.3,10.85099078]
[1756878444831,0.001,4331.7,4331.6,2.30861575]
[1756878445034,0.001,4331.7,4331.6,6.1927019]
[1756878445234,0.001,4331.7,4331.6,7.49231575]
[1756878445403,1e-08,4331.7,4331.6,14.96588822]
[1756878445734,1e-08,4331.7,4331.6,15.0583989]
[1756878445914,1e-08,4331.7,4331.6,16.6853989]
[1756878455258,1e-08,4331.8,4331.7,2.30856245]
[1756878455460,1e-08,4331.8,4331.7,3.26444807]
[1756878455625,1e-08,4331.8,4331.7,5.05846215]
[1756878455828,1e-08,4331.8,4331.7,11.52787972]
[1756878457262,1e-08,4331.8,4331.7,10.29477972]
[1756878457960,1e-08,4331.8,4331.7,10.76597972]
[1756878459430,1e-08,4331.8,4331.7,11.06627972]
[1756878460035,1e-08,4331.8,4331.7,11.52787972]
[1756878460968,1e-08,4331.8,4331.7,14.06127653]
[1756878461139,0.24920001,4331.8,4331.7,12.56756245]
[1756878461536,0.24920001,4331.8,4331.7,2.30856245]
[1756878463872,1e-08,4331.8,4331.7,2.30856245]
[1756878466489,1e-08,4331.8,4331.7,3.08006245]
[1756878466688,1e-08,4331.8,4331.7,3.54166245]
[1756878466986,1e-08,4331.8,4331.7,4.52411274]
[1756878468768,1e-08,4331.8,4331.7,4.06251274]
[1756878468971,1e-08,4331.8,4331.7,3.08006245]
[1756878469411,1e-08,4331.8,4331.7,3.56474807]
[1756878469916,1e-08,4331.8,4331.7,5.37636308]
[1756878471265,1e-08,4331.8,4331.7,9.23536308]
[1756878473100,0.00100001,4331.8,4331.7,9.23536308]
[1756878473295,0.00100001,4331.8,4331.7,10.39016343]
[1756878483157,0.02100001,4331.8,4331.7,10.39016343]
[1756878486182,0.02100001,4331.8,4331.7,5.59836343]
[1756878486354,0.02100001,4331.8,4331.7,7.90876245]
[1756878486556,0.27020001,4331.8,4331.7,6.28176245]
[1756878487665,0.27020001,4331.8,4331.7,2.42376245]
[1756878487868,0.02100001,4331.8,4331.7,2.42376245]
[1756878493372,0.02100001,4331.8,4331.7,3.66834807]
[1756878493546,0.02100001,4331.8,4331.7,4.65224934]
[1756878493750,0.02100001,4331.8,4331.7,5.42116372]
[1756878495572,0.02100001,4331.8,4331.7,7.04816372]
[1756878495876,1e-08,4331.8,4331.7,7.04816372]
[1756878496787,1e-08,4331.8,4331.7,13.44816372]
[1756878497150,0.001,4332.2,4331.7,11.02440127]
[1756878497385,0.001,4332.2,4331.8,6.52559168]
[1756878497556,0.001,4332.2,4332.1,3.21554929]
[1756878497757,0.001,4332.2,4332.1,13.77004929]
[1756878498081,0.001,4332.2,4332.1,14.69504929]
[1756878498269,0.001,4332.2,4332.1,14.78754371]
[1756878498474,0.001,4332.2,4332.1,11.82043991]
[1756878498681,0.001,4332.2,4332.1,15.67843991]
[1756878499509,0.001,4332.2,4332.1,16.12203991]
[1756878499706,0.001,4332.2,4332.1,15.67843991]
[1756878500224,0.001,4332.2,4332.1,16.12203991]
[1756878501105,0.001,4332.2,4332.1,8.91604371]
[1756878501309,0.001,4332.2,4332.1,2.42354929]
[1756878501907,0.001,4332.2,4332.1,2.86714929]
[1756878503219,0.001,4332.2,4332.1,3.64504929]
[1756878503589,0.001,4332.2,4332.1,2.86714929]
[1756878504626,0.001,4332.2,4332.1,4.76429824]
[1756878504823,0.001,4332.2,4332.1,5.55629824]
[1756878505025,0.001,4332.2,4332.1,6.03769824]
[1756878505400,0.001,4332.2,4332.1,12.53020079]
[1756878507223,0.001,4332.2,4332.1,12.53420079]
[1756878510623,0.001,4333.1,4332.3,3.10024273]
[1756878510787,0.001,4333.1,4332.3,8.60791457]
[1756878510993,0.001,4333.1,4332.3,9.80533215]
[1756878511188,0.001,4333.1,4332.3,16.20533215]
[1756878513389,0.2492,4333.0,4332.3,11.12783215]
[1756878513585,0.2492,4333.0,4332.3,13.35724273]
[1756878514640,0.2492,4333.0,4332.3,6.95724273]
[1756878515642,0.2492,4333.0,4332.3,6.16524273]
[1756878515848,0.2892,4332.8,4332.3,6.95724273]
[1756878518040,0.04,4332.8,4332.3,6.95724273]
[1756878518810,0.2892,4332.8,4332.3,6.95724273]
[1756878524752,0.2892,4332.8,4332.3,0.792]
[1756878524956,0.2892,4332.8,4332.1,6.5192]
[1756878524957,0.2502,4332.4,4332.1,0.1192]
[1756878525155,0.2492,4332.3,4332.1,0.1192]
[1756878525463,0.2492,4332.3,4332.2,0.792]
[1756878525631,0.51438228,4332.3,4332.2,0.792]
[1756878525829,0.51438228,4332.3,4332.1,0.1192]
[1756878526045,2.55749069,4332.3,4332.1,0.004]
[1756878526246,0.1152,4332.2,4332.1,0.004]
[1756878526446,0.3644,4332.2,4332.1,0.004]
[1756878528868,0.1152,4332.2,4332.1,0.004]
[1756878534007,3.9722,4332.2,4332.1,0.004]
[1756878534206,4.44587823,4332.2,4332.1,0.004]
[1756878540478,4.69507823,4332.2,4332.1,0.004]
[1756878540706,4.44587823,4332.2,4332.1,0.004]
[1756878542283,0.58887823,4332.2,4332.1,0.004]
[1756878542483,0.001,4332.4,4332.2,0.792]
[1756878542747,3.856,4332.3,4332.2,1.2677]
[1756878543511,3.856,4332.3,4332.2,1.2381]
[1756878544019,3.857,4332.3,4332.2,1.2381]
[1756878544428,0.001,4332.3,4332.2,1.2381]
[1756878544615,3.857,4332.3,4332.2,1.2381]
[1756878548305,3.857,4332.3,4332.2,1.5514]
[1756878549824,3.857,4332.3,4332.2,1.2381]
[1756878551214,3.857,4332.3,4332.2,1.5514]
[1756878551745,3.857,4332.3,4332.2,2.0271]
[1756878552854,3.857,4332.3,4332.2,1.5514]
[1756878553254,3.857,4332.3,4332.2,1.2381]
[1756878554175,4.73571585,4332.3,4332.1,0.004]
[1756878554378,4.80248717,4332.3,4332.1,0.004]
[1756878554676,0.2492,4332.2,4332.1,0.004]
[1756878555338,2.55749601,4332.2,4332.1,0.004]
[1756878555532,4.60571585,4332.3,4332.1,0.004]
[1756878555736,6.91396165,4332.3,4332.1,0.004]
[1756878555937,3.01131218,4332.2,4332.1,0.004]
[1756878556637,0.70301617,4332.2,4332.1,0.004]
[1756878558461,4.55901617,4332.2,4332.1,0.004]
[1756878562368,0.70301617,4332.2,4332.1,0.004]
[1756878562662,3.856,4332.2,4332.1,0.004]
[1756878562863,6.16429601,4332.2,4332.1,0.004]
[1756878564845,3.856,4332.2,4332.1,0.004]
[1756878566174,6.16429601,4332.2,4332.1,0.004]
[1756878566370,3.856,4332.2,4332.1,0.004]
[1756878566836,2.42846511,4332.3,4332.1,0.004]
[1756878567172,3.856,4332.2,4332.1,0.004]
[1756878567975,2.30829601,4332.2,4332.1,0.004]
[1756878568174,6.16429601,4332.2,4332.1,0.004]
[1756878568371,3.856,4332.2,4332.1,0.004]
[1756878569287,6.16429601,4332.2,4332.1,0.004]
[1756878571076,3.856,4332.2,4332.1,0.004]
[1756878572282,6.16429601,4332.2,4332.1,1.2608]
[1756878573149,6.16429601,4332.2,4332.1,0.796]
[1756878576974,7.03518472,4332.2,4332.1,0.796]
[1756878577500,3.17918472,4332.2,4332.1,0.796]
[1756878577699,7.03418472,4332.2,4332.1,0.796]
[1756878583306,3.855,4332.2,4332.1,2.0403]
[1756878585327,1.7472,4332.3,4332.2,0.792]
[1756878585627,5.6022,4332.3,4332.2,1.727]
[1756878585998,5.6022,4332.3,4332.2,2.0363]
[1756878587499,1.628,4332.3,4332.2,2.0363]
[1756878587700,5.483,4332.3,4332.2,2.24033]
[1756878588328,5.483,4332.3,4332.2,1.5715]
[1756878588535,5.483,4332.3,4332.1,0.796]
[1756878588701,5.483,4332.3,4332.2,0.4648]
[1756878589035,2.42349601,4332.2,4332.1,0.004]
[1756878590520,2.73946733,4332.2,4332.1,0.004]
[1756878590714,3.89093724,4332.2,4332.1,0.004]
[1756878591443,4.14013724,4332.2,4332.1,0.004]
[1756878591662,3.82416592,4332.2,4332.1,0.004]
[1756878593055,4.14013724,4332.2,4332.1,0.004]
[1756878593922,4.42916043,4332.2,4332.1,0.004]
[1756878595535,8.28316043,4332.2,4332.1,0.004]
[1756878596770,8.03396043,4332.2,4332.1,0.004]
[1756878596972,7.74493724,4332.2,4332.1,0.004]
[1756878601586,7.42896592,4332.2,4332.1,1.5428]
[1756878601790,7.42896592,4332.2,4332.1,0.796]
[1756878601993,8.28316043,4332.2,4332.1,0.796]
[1756878602557,8.03396043,4332.2,4332.1,0.796]
[1756878602764,15.19396043,4332.2,4332.1,0.796]
[1756878602962,15.44316043,4332.2,4332.1,0.796]
[1756878603771,15.19396043,4332.2,4332.1,0.796]
[1756878604210,14.90493724,4332.2,4332.1,0.796]
[1756878606484,11.05093724,4332.2,4332.1,0.796]
[1756878606786,14.58896592,4332.2,4332.1,1.2294]
[1756878608332,14.90493724,4332.2,4332.1,0.796]
[1756878613029,11.05093724,4332.2,4332.1,0.796]
[1756878613324,14.90493724,4332.2,4332.1,0.796]
[1756878615516,14.58896592,4332.2,4332.1,0.796]
[1756878616403,2.30845587,4331.9,4331.8,0.004]
[1756878616602,6.65155134,4331.9,4331.8,0.004]
[1756878616815,14.06075134,4331.9,4331.8,0.004]
[1756878617406,14.37672266,4331.9,4331.8,0.004]
[1756878618216,14.12752266,4331.9,4331.8,0.004]
[1756878623734,10.27352266,4331.9,4331.8,0.7508]